[Event "*** SCC Grand Prix: Titled Tuesday Blitz"]
[Site "Chess.com"]
[Date "2020.06.02"]
[Round "6"]
[White "praveenb2002"]
[Black "Siniauski"]
[Result "1-0"]
[WhiteElo "2728"]
[BlackElo "2503"]
[TimeControl "180+1"]
[EndTime "11:11:04 PDT"]
[Termination "praveenb2002 won by resignation"]

1. e4 {[%clk 0:02:56.7]} 1... e6 {[%clk 0:02:59.7]} 2. d4 {[%clk 0:02:56.7]}
2... d5 {[%clk 0:02:59.6]} 3. Nd2 {[%clk 0:02:56.8]} 3... c5 {[%clk 0:02:59]} 4.
exd5 {[%clk 0:02:55.3]} 4... Qxd5 {[%clk 0:02:59.9]} 5. Ngf3 {[%clk 0:02:54.8]}
5... cxd4 {[%clk 0:02:58.4]} 6. Bc4 {[%clk 0:02:55.4]} 6... Qd8 {[%clk
0:02:56.7]} 7. O-O {[%clk 0:02:52]} 7... Nc6 {[%clk 0:02:56.1]} 8. Nb3 {[%clk
0:02:52.3]} 8... a6 {[%clk 0:02:54.5]} 9. Nbxd4 {[%clk 0:02:50.2]} 9... Nxd4
{[%clk 0:02:54.2]} 10. Qxd4 {[%clk 0:02:50]} 10... Qxd4 {[%clk 0:02:53.3]} 11.
Nxd4 {[%clk 0:02:49.7]} 11... Be7 {[%clk 0:02:50]} 12. a4 {[%clk 0:02:44.7]}
12... Nf6 {[%clk 0:02:47.8]} 13. Rd1 {[%clk 0:02:44.3]} 13... O-O {[%clk
0:02:46.2]} 14. Bg5 {[%clk 0:02:37]} 14... h6 {[%clk 0:02:43.3]} 15. Bh4 {[%clk
0:02:32.2]} 15... Bd7 {[%clk 0:02:13.7]} 16. c3 {[%clk 0:02:29.1]} 16... Rfd8
{[%clk 0:02:12.3]} 17. h3 {[%clk 0:02:24.8]} 17... Rac8 {[%clk 0:02:10.8]} 18.
Be2 {[%clk 0:02:23.8]} 18... e5 {[%clk 0:02:00.6]} 19. Nf3 {[%clk 0:02:18.5]}
19... e4 {[%clk 0:01:58.6]} 20. Nd4 {[%clk 0:02:15.3]} 20... Be8 {[%clk
0:01:40.9]} 21. Nf5 {[%clk 0:02:14]} 21... Kf8 {[%clk 0:01:30.8]} 22. Nxe7
{[%clk 0:02:08]} 22... Kxe7 {[%clk 0:01:31.7]} 23. Bg4 {[%clk 0:02:04]} 23...
Ra8 {[%clk 0:01:21.9]} 24. Be2 {[%clk 0:01:39.2]} 24... Bc6 {[%clk 0:01:17.1]}
25. a5 {[%clk 0:01:36.9]} 25... g5 {[%clk 0:01:04.9]} 26. Bg3 {[%clk 0:01:36.2]}
26... Nd5 {[%clk 0:01:05.3]} 27. Be5 {[%clk 0:01:26.1]} 27... f6 {[%clk
0:00:58.7]} 28. Bd4 {[%clk 0:01:25]} 28... f5 {[%clk 0:00:51.8]} 29. Bc5+ {[%clk
0:01:22.7]} 29... Kf6 {[%clk 0:00:41]} 30. g3 {[%clk 0:01:16.6]} 30... f4 {[%clk
0:00:37.2]} 31. Bd4+ {[%clk 0:01:15.8]} 31... Ke7 {[%clk 0:00:33.5]} 32. Bc4
{[%clk 0:01:09.9]} 32... Kd6 {[%clk 0:00:20.5]} 33. Bb6 {[%clk 0:01:06.5]} 33...
Ke5 {[%clk 0:00:11.8]} 34. Bxd8 {[%clk 0:01:05.8]} 34... Rxd8 {[%clk 0:00:12.7]}
35. Rd4 {[%clk 0:01:02.9]} 35... Rf8 {[%clk 0:00:08.5]} 36. Re1 {[%clk
0:00:55.1]} 36... Ne7 {[%clk 0:00:07.7]} 37. Bd3 {[%clk 0:00:47.5]} 37... Nf5
{[%clk 0:00:07.4]} 38. Rdxe4+ {[%clk 0:00:24]} 38... Bxe4 {[%clk 0:00:07.4]} 39.
Rxe4+ {[%clk 0:00:24.9]} 39... Kd6 {[%clk 0:00:08]} 40. gxf4 {[%clk 0:00:24.4]}
40... Nh4 {[%clk 0:00:08.5]} 41. fxg5 {[%clk 0:00:19.3]} 41... Nf3+ {[%clk
0:00:08.6]} 42. Kg2 {[%clk 0:00:19.9]} 42... hxg5 {[%clk 0:00:08.9]} 43. Re3
{[%clk 0:00:17.7]} 43... Ne5 {[%clk 0:00:08.7]} 44. Be2 {[%clk 0:00:18.2]} 44...
Kd5 {[%clk 0:00:08]} 45. Rg3 {[%clk 0:00:17.3]} 45... Rf5 {[%clk 0:00:07]} 46.
Bd3 {[%clk 0:00:13.4]} 46... Nxd3 {[%clk 0:00:04.7]} 47. Rxd3+ {[%clk
0:00:14.3]} 47... Kc4 {[%clk 0:00:05.3]} 48. Rd4+ {[%clk 0:00:14.2]} 48... Kc5
{[%clk 0:00:02.8]} 49. Rb4 {[%clk 0:00:13.4]} 49... Rf7 {[%clk 0:00:03.2]} 50.
Rb6 {[%clk 0:00:13.2]} 50... Rg7 {[%clk 0:00:02.4]} 51. Kg3 {[%clk 0:00:13]}
51... Kc4 {[%clk 0:00:02.6]} 52. Kg4 {[%clk 0:00:12]} 52... Kd3 {[%clk
0:00:02.8]} 53. f4 {[%clk 0:00:09.3]} 53... gxf4+ {[%clk 0:00:03.7]} 54. Kxf4
{[%clk 0:00:10.2]} 54... Rf7+ {[%clk 0:00:04.2]} 55. Kg5 {[%clk 0:00:10.5]}
55... Rg7+ {[%clk 0:00:04.3]} 56. Kh6 {[%clk 0:00:08.9]} 56... Re7 {[%clk
0:00:03.8]} 57. h4 {[%clk 0:00:08.5]} 57... Kc4 {[%clk 0:00:02.8]} 58. h5 {[%clk
0:00:08.6]} 58... Re5 {[%clk 0:00:01.4]} 59. Rxb7 {[%clk 0:00:08.1]} 59... Rxa5
{[%clk 0:00:01.7]} 60. Rb4+ {[%clk 0:00:08.2]} 60... Kd3 {[%clk 0:00:01.8]} 61.
Kg6 {[%clk 0:00:08.4]} 61... Ra1 {[%clk 0:00:01.7]} 62. h6 {[%clk 0:00:08.8]}
62... Rg1+ {[%clk 0:00:01.8]} 63. Kh5 {[%clk 0:00:09]} 63... Rg8 {[%clk
0:00:01.3]} 64. h7 {[%clk 0:00:05.5]} 64... Rc8 {[%clk 0:00:01.7]} 65. Kh6
{[%clk 0:00:04.8]} 65... Kc2 {[%clk 0:00:01.9]} 66. Rg4 {[%clk 0:00:03.7]} 66...
Rc6+ {[%clk 0:00:02.1]} 67. Rg6 {[%clk 0:00:04]} 67... Rc8 {[%clk 0:00:02.7]}
68. Rg8 {[%clk 0:00:04.6]} 68... Rc6+ {[%clk 0:00:03.3]} 69. Kg5 {[%clk
0:00:05.1]} 69... Rc5+ {[%clk 0:00:03.9]} 70. Kg6 {[%clk 0:00:05.3]} 70... Rc6+
{[%clk 0:00:04.3]} 71. Kf5 {[%clk 0:00:05.2]} 71... Rc5+ {[%clk 0:00:04.9]} 72.
Ke4 {[%clk 0:00:05.3]} 72... Rc4+ {[%clk 0:00:04.6]} 73. Kd5 {[%clk 0:00:05.3]}
73... Rh4 {[%clk 0:00:04.8]} 74. h8=Q {[%clk 0:00:05.8]} 74... Rxh8 {[%clk
0:00:05]} 75. Rxh8 {[%clk 0:00:06.7]} 75... Kxb2 {[%clk 0:00:05.6]} 76. c4
{[%clk 0:00:07.5]} 76... a5 {[%clk 0:00:05.7]} 77. c5 {[%clk 0:00:08.1]} 77...
a4 {[%clk 0:00:06.3]} 78. Ra8 {[%clk 0:00:08.2]} 78... a3 {[%clk 0:00:05.7]} 79.
c6 {[%clk 0:00:08.8]} 79... a2 {[%clk 0:00:05.9]} 80. c7 {[%clk 0:00:07.2]}
80... a1=Q {[%clk 0:00:06.1]} 81. Rxa1 {[%clk 0:00:08.1]} 81... Kxa1 {[%clk
0:00:06.5]} 82. c8=Q {[%clk 0:00:09]} 1-0

[Event "*** SCC Grand Prix: Titled Tuesday Blitz"]
[Site "Chess.com"]
[Date "2020.06.02"]
[Round "6"]
[White "Justinz"]
[Black "MomchilPetkov"]
[Result "0-1"]
[WhiteElo "2314"]
[BlackElo "2528"]
[TimeControl "180+1"]
[EndTime "11:11:12 PDT"]
[Termination "MomchilPetkov won on time"]

1. e4 {[%clk 0:02:55.6]} 1... c5 {[%clk 0:02:59.4]} 2. Nf3 {[%clk 0:02:55.4]}
2... d6 {[%clk 0:02:59.6]} 3. d4 {[%clk 0:02:55.3]} 3... cxd4 {[%clk 0:03:00]}
4. Nxd4 {[%clk 0:02:56.1]} 4... Nf6 {[%clk 0:03:00.3]} 5. Nc3 {[%clk 0:02:56.5]}
5... a6 {[%clk 0:03:00.3]} 6. Rg1 {[%clk 0:02:56.9]} 6... b5 {[%clk 0:02:59.3]}
7. g4 {[%clk 0:02:48.5]} 7... Bb7 {[%clk 0:02:58.1]} 8. Bg2 {[%clk 0:02:47.5]}
8... e6 {[%clk 0:02:57.7]} 9. g5 {[%clk 0:02:45.6]} 9... Nfd7 {[%clk 0:02:57.7]}
10. a3 {[%clk 0:02:43.6]} 10... Nb6 {[%clk 0:02:55.9]} 11. h4 {[%clk 0:02:38.6]}
11... N8d7 {[%clk 0:02:55.9]} 12. Qg4 {[%clk 0:02:31.5]} 12... Ne5 {[%clk
0:02:54.3]} 13. Qg3 {[%clk 0:02:26.9]} 13... Be7 {[%clk 0:02:23.4]} 14. f4
{[%clk 0:02:24.5]} 14... Nec4 {[%clk 0:02:20.6]} 15. b3 {[%clk 0:02:16.9]} 15...
Na5 {[%clk 0:02:20.4]} 16. Bb2 {[%clk 0:02:12]} 16... Qc7 {[%clk 0:02:09.3]} 17.
O-O-O {[%clk 0:01:52.5]} 17... O-O-O {[%clk 0:01:36.1]} 18. f5 {[%clk
0:01:49.3]} 18... e5 {[%clk 0:01:35]} 19. Nde2 {[%clk 0:01:47.6]} 19... Kb8
{[%clk 0:01:30.1]} 20. Kb1 {[%clk 0:01:44.6]} 20... Nc6 {[%clk 0:01:18.7]} 21.
Rd2 {[%clk 0:01:22.9]} 21... f6 {[%clk 0:00:40.2]} 22. Rgd1 {[%clk 0:01:19.9]}
22... Ka8 {[%clk 0:00:36.3]} 23. Qe3 {[%clk 0:00:50.9]} 23... Rd7 {[%clk
0:00:31]} 24. Nd5 {[%clk 0:00:46.8]} 24... Nxd5 {[%clk 0:00:30.8]} 25. Rxd5
{[%clk 0:00:45.6]} 25... Nd4 {[%clk 0:00:20.6]} 26. R5xd4 {[%clk 0:00:44.5]}
26... exd4 {[%clk 0:00:20.4]} 27. Nxd4 {[%clk 0:00:45.4]} 27... Qb6 {[%clk
0:00:20.2]} 28. Qf4 {[%clk 0:00:35.1]} 28... Rc8 {[%clk 0:00:20.1]} 29. Ne6
{[%clk 0:00:33.9]} 29... b4 {[%clk 0:00:17.8]} 30. a4 {[%clk 0:00:32.6]} 30...
Qc6 {[%clk 0:00:17.8]} 31. Rd2 {[%clk 0:00:31.7]} 31... Qb6 {[%clk 0:00:17.1]}
32. Bd4 {[%clk 0:00:28.3]} 32... Qa5 {[%clk 0:00:15.9]} 33. Qe3 {[%clk
0:00:27.3]} 33... Bd8 {[%clk 0:00:12.4]} 34. h5 {[%clk 0:00:25.3]} 34... h6
{[%clk 0:00:11.9]} 35. gxh6 {[%clk 0:00:24.7]} 35... gxh6 {[%clk 0:00:12.8]} 36.
Qxh6 {[%clk 0:00:24.4]} 36... d5 {[%clk 0:00:11.8]} 37. e5 {[%clk 0:00:22.5]}
37... fxe5 {[%clk 0:00:11.2]} 38. Bxe5 {[%clk 0:00:22.6]} 38... Bb6 {[%clk
0:00:09.8]} 39. Qf4 {[%clk 0:00:21.1]} 39... d4 {[%clk 0:00:09.6]} 40. Bxb7+
{[%clk 0:00:20.3]} 40... Rxb7 {[%clk 0:00:10.5]} 41. h6 {[%clk 0:00:20.3]} 41...
Qd5 {[%clk 0:00:10]} 42. h7 {[%clk 0:00:18]} 42... Qh1+ {[%clk 0:00:10.3]} 43.
Kb2 {[%clk 0:00:16.5]} 43... Qxh7 {[%clk 0:00:10.3]} 44. a5 {[%clk 0:00:12.1]}
44... Ba7 {[%clk 0:00:10]} 45. Bxd4 {[%clk 0:00:11.4]} 45... Bxd4+ {[%clk
0:00:09.7]} 46. Qxd4 {[%clk 0:00:11.9]} 46... Qf7 {[%clk 0:00:08.7]} 47. Qe5
{[%clk 0:00:11.5]} 47... Qe8 {[%clk 0:00:06.2]} 48. Re2 {[%clk 0:00:09.7]} 48...
Qc6 {[%clk 0:00:06.1]} 49. f6 {[%clk 0:00:09.1]} 49... Rb5 {[%clk 0:00:05.9]}
50. Qe3 {[%clk 0:00:07.6]} 50... Rf5 {[%clk 0:00:05]} 51. Nd4 {[%clk 0:00:06.4]}
51... Qc3+ {[%clk 0:00:04.5]} 52. Qxc3 {[%clk 0:00:06.2]} 52... bxc3+ {[%clk
0:00:05.4]} 53. Ka3 {[%clk 0:00:07.1]} 53... Rxf6 {[%clk 0:00:06.3]} 54. Re3
{[%clk 0:00:07]} 54... Rd6 {[%clk 0:00:06.3]} 55. Ne2 {[%clk 0:00:04.6]} 55...
Rd2 {[%clk 0:00:05.7]} 56. Nxc3 {[%clk 0:00:03.4]} 56... Rxc2 {[%clk 0:00:05.2]}
57. Kb4 {[%clk 0:00:04.3]} 57... Rd2 {[%clk 0:00:04.8]} 58. Na4 {[%clk
0:00:04.5]} 58... Rb8+ {[%clk 0:00:05.2]} 59. Ka3 {[%clk 0:00:05.4]} 59... Rd6
{[%clk 0:00:04.1]} 60. Nb6+ {[%clk 0:00:06.3]} 60... Kb7 {[%clk 0:00:04.7]} 61.
Re7+ {[%clk 0:00:05.6]} 61... Kc6 {[%clk 0:00:05.1]} 62. Re5 {[%clk 0:00:06.5]}
62... Rf8 {[%clk 0:00:04.1]} 63. Re4 {[%clk 0:00:07.2]} 63... Rf1 {[%clk
0:00:04.2]} 64. Rc4+ {[%clk 0:00:08.1]} 64... Kb7 {[%clk 0:00:04.6]} 65. Kb4
{[%clk 0:00:08.1]} 65... Re1 {[%clk 0:00:04.2]} 66. Rc3 {[%clk 0:00:08.2]} 66...
Ree6 {[%clk 0:00:04.6]} 67. Nc4 {[%clk 0:00:09.1]} 67... Rc6 {[%clk 0:00:04.7]}
68. Rf3 {[%clk 0:00:09.2]} 68... Re4 {[%clk 0:00:05.3]} 69. Rf7+ {[%clk
0:00:08.6]} 69... Rc7 {[%clk 0:00:05.8]} 70. Rf6 {[%clk 0:00:06.3]} 70... Rh4
{[%clk 0:00:05.1]} 71. Rb6+ {[%clk 0:00:05.7]} 71... Ka7 {[%clk 0:00:06]} 72.
Kc3 {[%clk 0:00:05.5]} 72... Rb7 {[%clk 0:00:06.6]} 73. Rxb7+ {[%clk 0:00:04.3]}
73... Kxb7 {[%clk 0:00:06.2]} 74. Nb6 {[%clk 0:00:05.2]} 74... Kc6 {[%clk
0:00:06.3]} 75. Nc4 {[%clk 0:00:04.4]} 75... Kc5 {[%clk 0:00:05.9]} 76. b4+
{[%clk 0:00:03.3]} 76... Kd5 {[%clk 0:00:05.8]} 77. Nb6+ {[%clk 0:00:02.4]}
77... Kc6 {[%clk 0:00:06]} 78. Nc4 {[%clk 0:00:02.4]} 78... Kb5 {[%clk
0:00:06.2]} 79. Nd6+ {[%clk 0:00:01.4]} 79... Ka4 {[%clk 0:00:06.8]} 80. Nc4
{[%clk 0:00:01.1]} 80... Rh3+ {[%clk 0:00:06.9]} 81. Kd4 {[%clk 0:00:01.3]}
81... Kxb4 {[%clk 0:00:07.2]} 0-1

[Event "*** SCC Grand Prix: Titled Tuesday Blitz"]
[Site "Chess.com"]
[Date "2020.06.02"]
[Round "6"]
[White "mbojan"]
[Black "GMSrinath"]
[Result "1/2-1/2"]
[WhiteElo "2633"]
[BlackElo "2792"]
[TimeControl "180+1"]
[EndTime "11:11:30 PDT"]
[Termination "Game drawn - insufficient material"]

1. e4 {[%clk 0:03:00.9]} 1... c6 {[%clk 0:02:59.5]} 2. d3 {[%clk 0:02:59.9]}
2... d5 {[%clk 0:02:57.5]} 3. Nd2 {[%clk 0:03:00.2]} 3... Nf6 {[%clk 0:02:53.7]}
4. Ngf3 {[%clk 0:02:57.4]} 4... g6 {[%clk 0:02:53.4]} 5. g3 {[%clk 0:02:56.9]}
5... Bg7 {[%clk 0:02:53.6]} 6. Bg2 {[%clk 0:02:57.3]} 6... O-O {[%clk
0:02:54.2]} 7. O-O {[%clk 0:02:57.3]} 7... dxe4 {[%clk 0:02:54.7]} 8. dxe4
{[%clk 0:02:54.7]} 8... Na6 {[%clk 0:02:55.1]} 9. Re1 {[%clk 0:02:53.8]} 9...
Bg4 {[%clk 0:02:53.4]} 10. h3 {[%clk 0:02:53.4]} 10... Bxf3 {[%clk 0:02:52.7]}
11. Qxf3 {[%clk 0:02:51]} 11... Nb4 {[%clk 0:02:50.7]} 12. Qb3 {[%clk
0:02:45.9]} 12... a5 {[%clk 0:02:23.1]} 13. a3 {[%clk 0:02:43.1]} 13... Na6
{[%clk 0:02:22.2]} 14. Qxb7 {[%clk 0:02:43.3]} 14... Nc5 {[%clk 0:02:19.9]} 15.
Qxc6 {[%clk 0:02:43.5]} 15... Rc8 {[%clk 0:02:20.6]} 16. Qb5 {[%clk 0:02:43.7]}
16... Nfd7 {[%clk 0:02:20.4]} 17. Rb1 {[%clk 0:02:29.7]} 17... a4 {[%clk
0:02:16.2]} 18. Qe2 {[%clk 0:02:27]} 18... Qc7 {[%clk 0:02:15.3]} 19. Nf3 {[%clk
0:01:48]} 19... Ne6 {[%clk 0:01:58.5]} 20. c3 {[%clk 0:01:47.9]} 20... Rfd8
{[%clk 0:01:59]} 21. Be3 {[%clk 0:01:46.9]} 21... Ndc5 {[%clk 0:01:58.3]} 22.
Ng5 {[%clk 0:01:18.3]} 22... Rb8 {[%clk 0:01:15.7]} 23. Nxe6 {[%clk 0:01:11.8]}
23... Nxe6 {[%clk 0:01:16.6]} 24. Qc2 {[%clk 0:01:01.4]} 24... Rb3 {[%clk
0:01:13.6]} 25. Bf1 {[%clk 0:01:00.3]} 25... Rdb8 {[%clk 0:01:12.4]} 26. Red1
{[%clk 0:00:56.4]} 26... h5 {[%clk 0:01:12.2]} 27. h4 {[%clk 0:00:54.1]} 27...
Qb7 {[%clk 0:00:54.4]} 28. Bc4 {[%clk 0:00:40.9]} 28... Rxb2 {[%clk 0:00:54.7]}
29. Rxb2 {[%clk 0:00:40.3]} 29... Qxb2 {[%clk 0:00:55.6]} 30. Qxa4 {[%clk
0:00:34.9]} 30... Qxc3 {[%clk 0:00:51]} 31. Bxe6 {[%clk 0:00:33.8]} 31... fxe6
{[%clk 0:00:51.9]} 32. Qd7 {[%clk 0:00:33.7]} 32... Kf7 {[%clk 0:00:51.8]} 33.
a4 {[%clk 0:00:33.5]} 33... Be5 {[%clk 0:00:42.7]} 34. Bg5 {[%clk 0:00:27.6]}
34... Re8 {[%clk 0:00:43]} 35. Qd3 {[%clk 0:00:25.4]} 35... Qb4 {[%clk
0:00:23.9]} 36. Qb5 {[%clk 0:00:15.5]} 36... Qxe4 {[%clk 0:00:22.1]} 37. a5
{[%clk 0:00:14.1]} 37... Bd4 {[%clk 0:00:14.5]} 38. Qd3 {[%clk 0:00:11.9]} 38...
Qxd3 {[%clk 0:00:11.7]} 39. Rxd3 {[%clk 0:00:12.8]} 39... e5 {[%clk 0:00:12.6]}
40. Ra3 {[%clk 0:00:12.6]} 40... Ra8 {[%clk 0:00:13]} 41. a6 {[%clk 0:00:12.8]}
41... Ke6 {[%clk 0:00:13.4]} 42. Be3 {[%clk 0:00:13.2]} 42... Kd5 {[%clk
0:00:13.7]} 43. Kf1 {[%clk 0:00:13.5]} 43... Kc4 {[%clk 0:00:13.5]} 44. Ke2
{[%clk 0:00:13.7]} 44... Kb5 {[%clk 0:00:13.3]} 45. Kd3 {[%clk 0:00:13.2]} 45...
Kb4 {[%clk 0:00:06.4]} 46. Ra2 {[%clk 0:00:11.1]} 46... Kb3 {[%clk 0:00:06.8]}
47. Ra5 {[%clk 0:00:11.1]} 47... Kb4 {[%clk 0:00:07.3]} 48. Bd2+ {[%clk
0:00:10.7]} 48... Kb3 {[%clk 0:00:07.2]} 49. Rb5+ {[%clk 0:00:10.7]} 49... Ka4
{[%clk 0:00:07.4]} 50. Ra5+ {[%clk 0:00:10.9]} 50... Kb3 {[%clk 0:00:07.5]} 51.
Rb5+ {[%clk 0:00:02.4]} 51... Ka4 {[%clk 0:00:07.7]} 52. Rb4+ {[%clk 0:00:02.8]}
52... Ka3 {[%clk 0:00:07.8]} 53. Rb5 {[%clk 0:00:02.8]} 53... Rxa6 {[%clk
0:00:07.9]} 54. Be3 {[%clk 0:00:02.9]} 54... Rd6 {[%clk 0:00:07.7]} 55. Rb7
{[%clk 0:00:02.8]} 55... e6 {[%clk 0:00:05.9]} 56. Ke4 {[%clk 0:00:02.7]} 56...
Bxe3 {[%clk 0:00:05.9]} 57. fxe3 {[%clk 0:00:03.6]} 57... Rd2 {[%clk 0:00:05.8]}
58. Kxe5 {[%clk 0:00:03.3]} 58... Rg2 {[%clk 0:00:06.1]} 59. Kxe6 {[%clk
0:00:03.8]} 59... Rxg3 {[%clk 0:00:06.1]} 60. e4 {[%clk 0:00:04.4]} 60... Rg4
{[%clk 0:00:06.6]} 61. e5 {[%clk 0:00:05.1]} 61... Rxh4 {[%clk 0:00:07.1]} 62.
Kf6 {[%clk 0:00:05.7]} 62... Re4 {[%clk 0:00:07]} 63. e6 {[%clk 0:00:06.2]}
63... h4 {[%clk 0:00:07.5]} 64. e7 {[%clk 0:00:06.6]} 64... h3 {[%clk
0:00:07.9]} 65. Rb8 {[%clk 0:00:06.8]} 65... Rf4+ {[%clk 0:00:06.9]} 66. Kxg6
{[%clk 0:00:06.3]} 66... Re4 {[%clk 0:00:06.9]} 67. Kf6 {[%clk 0:00:06]} 67...
h2 {[%clk 0:00:06.9]} 68. Rh8 {[%clk 0:00:05.5]} 68... Rf4+ {[%clk 0:00:07.8]}
69. Ke5 {[%clk 0:00:05.8]} 69... Rf2 {[%clk 0:00:07]} 70. Kd6 {[%clk 0:00:05.3]}
70... Rd2+ {[%clk 0:00:06.9]} 71. Ke6 {[%clk 0:00:05.5]} 71... Re2+ {[%clk
0:00:06.8]} 72. Kd7 {[%clk 0:00:06]} 72... Rd2+ {[%clk 0:00:07]} 73. Kc8 {[%clk
0:00:06]} 73... Rc2+ {[%clk 0:00:06]} 74. Kd8 {[%clk 0:00:06.1]} 74... Rd2+
{[%clk 0:00:06.5]} 75. Ke8 {[%clk 0:00:06.5]} 75... Kb4 {[%clk 0:00:04.4]} 76.
Rh6 {[%clk 0:00:03.8]} 76... Re2 {[%clk 0:00:03.8]} 77. Kf8 {[%clk 0:00:03.9]}
77... Rf2+ {[%clk 0:00:03.6]} 78. Kg7 {[%clk 0:00:04.3]} 78... Rg2+ {[%clk
0:00:03.4]} 79. Kh8 {[%clk 0:00:04.3]} 79... Re2 {[%clk 0:00:03.4]} 80. Rh4+
{[%clk 0:00:04.3]} 80... Kc5 {[%clk 0:00:03.2]} 81. Rxh2 {[%clk 0:00:03.2]}
81... Rxh2+ {[%clk 0:00:03]} 82. Kg7 {[%clk 0:00:04.1]} 82... Re2 {[%clk
0:00:03.8]} 83. Kf8 {[%clk 0:00:04.4]} 83... Rf2+ {[%clk 0:00:04.1]} 84. Kg7
{[%clk 0:00:04.9]} 84... Rg2+ {[%clk 0:00:04.5]} 85. Kf8 {[%clk 0:00:05.4]}
85... Rf2+ {[%clk 0:00:04.5]} 86. Kg7 {[%clk 0:00:05.9]} 86... Re2 {[%clk
0:00:04.9]} 87. Kf8 {[%clk 0:00:06.3]} 87... Kd6 {[%clk 0:00:05.5]} 88. e8=Q
{[%clk 0:00:06.5]} 88... Rxe8+ {[%clk 0:00:06.4]} 89. Kxe8 {[%clk 0:00:07.4]}
1/2-1/2